bitfinex/quotes_BTCUSD_20250131
["timestamp","ask_amount","ask_price","bid_price","bid_amount"]
[1738336519600,0.24022216,104910.0,104900.0,0.08347915]
[1738336519812,0.39022216,104910.0,104900.0,0.08347915]
[1738336520035,0.39022216,104910.0,104900.0,0.00047915]
[1738336520367,0.39022216,104910.0,104900.0,0.14347215]
[1738336520568,0.15,104910.0,104900.0,0.14347215]
[1738336520705,0.152,104910.0,104900.0,0.22097215]
[1738336521086,0.292979,104910.0,104900.0,0.22097215]
[1738336521282,0.292979,104910.0,104900.0,0.07797915]
[1738336521283,0.39022216,104910.0,104900.0,0.07797915]
[1738336521532,0.48945486,104910.0,104900.0,0.00047915]
[1738336521738,0.40822216,104910.0,104900.0,0.00047915]
[1738336521939,0.42822216,104910.0,104900.0,0.00047915]
[1738336522662,0.39922216,104910.0,104900.0,0.00047915]
[1738336522876,0.42886216,104910.0,104900.0,0.00047915]
[1738336523090,0.52921892,104910.0,104900.0,0.00047915]
[1738336523306,0.50621892,104910.0,104900.0,0.00047915]
[1738336523512,0.50321892,104910.0,104900.0,0.00047915]
[1738336523948,1.20321892,104910.0,104900.0,0.00047915]
[1738336524159,1.19421892,104910.0,104900.0,0.00047915]
[1738336524363,1.22259803,104910.0,104900.0,0.00047915]
[1738336524571,1.24559803,104910.0,104900.0,0.00047915]
[1738336524803,1.25459803,104910.0,104900.0,0.00047915]
[1738336525002,1.27469803,104910.0,104900.0,0.00047915]
[1738336525436,1.28369803,104910.0,104900.0,0.00047915]
[1738336525614,0.153006,104890.0,104880.0,0.00017455]
[1738336525820,0.32068406,104890.0,104880.0,0.00031819]
[1738336525972,0.25024916,104890.0,104880.0,0.00031819]
[1738336526809,0.25324916,104890.0,104880.0,0.00031819]
[1738336527212,0.25024916,104890.0,104880.0,0.00031819]
[1738336527385,0.24024916,104890.0,104880.0,0.00457661]
[1738336527614,0.25824916,104890.0,104880.0,0.00457661]
[1738336527814,0.24924916,104890.0,104880.0,0.00457661]
[1738336528152,0.34660592,104890.0,104880.0,0.00457661]
[1738336529486,0.24924916,104890.0,104880.0,0.00457661]
[1738336530542,0.42834916,104890.0,104880.0,1.9e-07]
[1738336530753,0.323034,104870.0,104860.0,0.00025557]
[1738336531010,0.42027716,104870.0,104860.0,0.0003467]
[1738336531215,0.51763392,104870.0,104860.0,0.0003467]
[1738336531436,0.39027716,104870.0,104860.0,0.1225467]
[1738336532633,0.39927716,104870.0,104860.0,0.1225467]
[1738336532855,0.39027716,104870.0,104860.0,0.1225467]
[1738336533063,0.524438,104880.0,104860.0,0.4563137]
[1738336533271,0.159,104870.0,104860.0,0.2655937]
[1738336534004,0.15,104870.0,104860.0,0.2655937]
[1738336534216,0.153,104870.0,104860.0,0.2655937]
[1738336534864,0.153,104870.0,104860.0,0.1225467]
[1738336534865,0.47511146,104870.0,104860.0,0.1225467]
[1738336536052,0.48411146,104870.0,104860.0,0.0003467]
[1738336536645,0.40227716,104870.0,104860.0,0.0003467]
[1738336537038,0.41227716,104870.0,104860.0,0.0003467]
[1738336537440,0.40227716,104870.0,104860.0,0.0003467]
[1738336538215,0.43227716,104870.0,104860.0,0.0003467]
[1738336538421,0.42227716,104870.0,104860.0,0.0003467]
[1738336538625,0.51963392,104870.0,104860.0,0.0003467]
[1738336538969,0.40227716,104870.0,104860.0,0.0003467]
[1738336539177,0.40227716,104870.0,104860.0,1.0003467]
[1738336539590,0.42155538,104870.0,104860.0,1.0003467]
[1738336540026,0.44155538,104870.0,104860.0,1.0003467]
[1738336540664,0.45155538,104870.0,104860.0,1.0003467]
[1738336540846,0.54891214,104870.0,104860.0,1.0003467]
[1738336541583,0.42155538,104870.0,104860.0,1.0003467]
[1738336542003,0.43155538,104870.0,104860.0,1.0003467]
[1738336542831,0.45155538,104870.0,104860.0,1.0003467]
[1738336543173,0.4614049,104870.0,104860.0,1.0003467]
[1738336545962,0.4514049,104870.0,104860.0,1.0003467]
[1738336546499,0.4614049,104870.0,104860.0,1.0003467]
[1738336546706,0.50405283,104870.0,104860.0,1.0003467]
[1738336549091,0.48405283,104870.0,104860.0,1.0003467]
[1738336549293,0.50405283,104870.0,104860.0,1.0003467]
[1738336550520,0.4514049,104870.0,104860.0,1.0003467]
[1738336551479,0.4314049,104870.0,104860.0,1.0003467]
[1738336551732,0.4514049,104870.0,104860.0,1.0003467]
[1738336553557,0.4314049,104870.0,104860.0,1.0003467]
[1738336553815,0.4514049,104870.0,104860.0,1.0003467]
[1738336554053,0.54876166,104870.0,104860.0,1.0003467]
[1738336555538,0.4514049,104870.0,104860.0,1.0003467]
[1738336558496,0.4514049,104870.0,104860.0,1.0833467]
[1738336559015,0.4514049,104870.0,104860.0,1.0003467]
[1738336561616,0.4614049,104870.0,104860.0,1.0003467]
[1738336561821,1.1614049,104870.0,104860.0,1.0003467]
[1738336561978,1.25876166,104870.0,104860.0,1.0003467]
[1738336563018,1.24876166,104870.0,104860.0,1.0003467]
[1738336563249,1.94876166,104870.0,104860.0,1.0003467]
[1738336563422,1.24876166,104870.0,104860.0,1.0003467]
[1738336564047,1.24576166,104870.0,104860.0,1.0003467]
[1738336564549,0.54576166,104870.0,104860.0,1.0003467]
[1738336565122,0.55476166,104870.0,104860.0,1.0003467]
[1738336565328,1.24576166,104870.0,104860.0,1.0003467]
[1738336565519,1.25476166,104870.0,104860.0,1.0003467]
[1738336567789,1.28686166,104870.0,104860.0,1.0003467]
[1738336570953,1.29350166,104870.0,104860.0,1.0003467]
[1738336571356,1.3787354,104870.0,104860.0,1.0003467]
[1738336573293,1.3496354,104870.0,104860.0,1.0003467]
[1738336573518,1.35960109,104870.0,104860.0,1.0003467]
[1738336575352,1.23260433,104870.0,104860.0,1.0003467]
[1738336575571,1.23924433,104870.0,104860.0,1.0003467]
[1738336576956,1.24924433,104870.0,104860.0,1.1281467]
[1738336577165,1.23924433,104870.0,104860.0,1.1281467]
[1738336577985,1.23924433,104870.0,104860.0,1.0003467]
[1738336578193,1.33660109,104870.0,104860.0,1.0003467]
[1738336579606,1.25136735,104870.0,104860.0,1.0003467]
[1738336581319,1.15401059,104870.0,104860.0,1.0003467]
[1738336581552,1.16401059,104870.0,104860.0,1.0003467]
[1738336581759,0.99737059,104870.0,104860.0,1.0832467]
[1738336581967,0.97809237,104870.0,104860.0,1.2749937]
[1738336582170,0.82509268,104870.0,104860.0,1.2749937]
[1738336582372,0.018,104870.0,104860.0,1.2749937]
[1738336582986,0.009,104870.0,104860.0,1.2749937]
[1738336583483,0.012,104870.0,104860.0,1.2749937]
[1738336584154,0.155034,104870.0,104860.0,1.2749937]
[1738336584309,0.012,104870.0,104860.0,1.2749937]
[1738336584944,0.44069571,104870.0,104860.0,1.1319467]
[1738336585208,0.40227716,104870.0,104860.0,1.1319467]
[1738336585373,0.40227716,104870.0,104860.0,1.2749937]
[1738336585751,0.25924316,104870.0,104860.0,1.2749937]
[1738336585952,0.162,104870.0,104860.0,1.2749937]
[1738336586155,0.012,104870.0,104860.0,1.2749937]
[1738336586440,0.08535564,104880.0,104870.0,0.266234]
[1738336586644,0.08535564,104880.0,104870.0,0.289234]
[1738336587671,0.0041219,104880.0,104870.0,0.289234]
[1738336587935,0.0041219,104880.0,104870.0,0.266234]
[1738336588592,0.24438506,104880.0,104870.0,0.1232]
[1738336589018,0.25338506,104880.0,104870.0,0.266234]
[1738336589208,0.24938506,104880.0,104870.0,0.266234]
[1738336589450,0.10636506,104880.0,104870.0,0.266234]
[1738336589652,0.10936506,104880.0,104870.0,0.266234]
[1738336590867,0.25238506,104880.0,104870.0,0.266234]
[1738336591068,0.10936506,104880.0,104870.0,0.266234]
[1738336591718,0.0121219,104880.0,104870.0,0.266234]
[1738336596344,0.0121219,104880.0,104870.0,0.289234]
[1738336597173,0.0121219,104880.0,104870.0,0.266234]
[1738336612329,0.0121219,104880.0,104870.0,0.26648999]
[1738336618663,0.10936506,104880.0,104870.0,0.26648999]
[1738336621564,0.0121219,104880.0,104870.0,0.26648999]
[1738336622578,0.0121219,104880.0,104870.0,0.29624066]
[1738336622788,0.0121219,104880.0,104870.0,0.31924066]
[1738336625306,0.0121219,104880.0,104870.0,0.29624066]
[1738336625841,0.0121219,104880.0,104870.0,0.26648999]
[1738336626050,0.0121219,104880.0,104870.0,0.29622855]
[1738336626250,0.3051419,104880.0,104870.0,0.26648999]
[1738336626461,0.1621219,104880.0,104870.0,0.26648999]
[1738336626718,0.3051419,104880.0,104870.0,0.26648999]
[1738336626889,0.1621219,104880.0,104870.0,0.26648999]
[1738336630615,0.0121219,104880.0,104870.0,0.26648999]
[1738336630860,0.0121219,104880.0,104870.0,0.28948999]
[1738336631069,0.0121219,104880.0,104870.0,0.31920027]
[1738336631269,0.0121219,104880.0,104870.0,0.44149924]
[1738336633942,0.0121219,104880.0,104870.0,0.29620027]
[1738336634149,0.0121219,104880.0,104870.0,0.26648999]
[1738336635672,0.0121219,104880.0,104870.0,0.41178896]
[1738336636269,0.0121219,104880.0,104870.0,0.28948999]
[1738336636477,0.0121219,104880.0,104870.0,0.3191909]
[1738336638517,0.0121219,104880.0,104870.0,0.28948999]
[1738336638695,0.0121219,104880.0,104870.0,0.31919325]
[1738336639275,0.0121219,104880.0,104870.0,0.28948999]
[1738336639661,0.0121219,104880.0,104870.0,0.26648999]
[1738336641061,0.40238506,104880.0,104870.0,0.00025599]
[1738336641498,0.40238506,104880.0,104870.0,0.14328999]
[1738336642423,0.40238506,104880.0,104870.0,0.00025599]
[1738336643448,0.43148506,104880.0,104870.0,0.00025599]
[1738336644538,0.43148506,104880.0,104860.0,0.78740971]
[1738336644539,0.194134,104870.0,104860.0,0.78740971]
[1738336644716,0.35266332,104870.0,104860.0,0.76833671]
[1738336644931,0.52516208,104870.0,104860.0,0.47871064]
[1738336645142,0.52516208,104870.0,104860.0,0.29747653]
[1738336645352,0.62251884,104870.0,104860.0,0.23278836]
[1738336645565,0.62251884,104870.0,104860.0,0.18952472]
[1738336647000,0.64147754,104870.0,104860.0,0.18952472]
[1738336647404,0.64147754,104870.0,104860.0,0.01101972]
[1738336647719,0.66932878,104870.0,104860.0,7.2e-07]
[1738336647922,0.352161,104850.0,104840.0,0.08541817]
[1738336648247,0.50276906,104850.0,104840.0,0.085562]
[1738336649919,0.43830416,104850.0,104840.0,0.086562]
[1738336650127,0.43830416,104850.0,104840.0,0.00139982]
[1738336650891,0.43494416,104850.0,104840.0,0.00139982]
[1738336651138,0.42830416,104850.0,104840.0,0.00139982]
[1738336651401,0.11524316,104850.0,104840.0,0.00139982]
[1738336651648,0.018,104850.0,104840.0,0.19427482]
[1738336651889,0.018,104850.0,104840.0,0.3561056]
[1738336652382,0.52454,104860.0,104840.0,0.27517482]
[1738336652628,0.009,104850.0,104840.0,0.27617482]
[1738336652832,0.161061,104850.0,104840.0,0.13309982]
[1738336653059,0.40830416,104850.0,104840.0,0.00139982]
[1738336653283,0.51666092,104850.0,104840.0,0.00039982]
[1738336653513,0.51766092,104850.0,104840.0,0.00039982]
[1738336653727,0.51766092,104850.0,104840.0,0.00139982]
[1738336653913,0.51766092,104850.0,104840.0,0.00039982]
[1738336654525,0.143088,104830.0,104820.0,0.00025557]
[1738336654732,0.31287326,104830.0,104820.0,0.00039937]
[1738336654936,0.46287326,104830.0,104820.0,0.00039937]
[1738336655347,0.46669226,104830.0,104820.0,0.00039937]
[1738336655924,0.47569226,104830.0,104820.0,0.00039937]
[1738336656175,0.48469226,104830.0,104820.0,0.00039937]
[1738336656361,0.50390145,104830.0,104820.0,0.00039937]
[1738336657612,0.43135935,104830.0,104820.0,0.00039937]
[1738336657817,0.45135935,104830.0,104820.0,0.00039937]
[1738336658027,0.45135935,104830.0,104820.0,0.00464821]
[1738336658206,0.45135935,104830.0,104820.0,0.00039937]
[1738336658414,0.45135935,104830.0,104820.0,0.00464821]
[1738336658615,0.54871611,104830.0,104820.0,0.00464821]
[1738336658950,0.52871611,104830.0,104820.0,0.00464821]
[1738336659150,0.54871611,104830.0,104820.0,0.00464821]
[1738336659569,0.26215016,104830.0,104820.0,0.00464821]
[1738336660014,0.2719964,104830.0,104820.0,0.00464821]
[1738336660233,0.4219964,104830.0,104820.0,0.00464821]
[1738336661418,0.021819,104830.0,104820.0,0.22835021]
[1738336661719,0.018,104830.0,104820.0,0.27355021]
[1738336662322,0.159,104830.0,104820.0,0.27355021]
[1738336662523,0.009,104830.0,104820.0,0.39390697]
[1738336662746,0.19120481,104850.0,104820.0,0.5328491]
[1738336662948,0.15301881,104850.0,104840.0,0.220475]
[1738336663126,0.25026197,104850.0,104840.0,0.08166526]
[1738336664395,0.40026197,104850.0,104840.0,0.08166526]
[1738336664814,0.40026197,104850.0,104840.0,0.22474026]
[1738336664949,0.40026097,104850.0,104840.0,0.22474026]
[1738336665152,0.25719997,104850.0,104840.0,0.22474026]
[1738336665381,0.15995681,104850.0,104840.0,0.29967829]
[1738336665561,0.00995681,104850.0,104840.0,0.34857829]
[1738336665762,0.34372168,104860.0,104850.0,0.143061]
[1738336665961,0.44096484,104860.0,104850.0,0.14763685]
[1738336666184,0.59096484,104860.0,104850.0,0.00457585]
[1738336667417,0.59996484,104860.0,104850.0,0.00457585]
[1738336668034,0.59996484,104860.0,104850.0,0.14763685]
[1738336668455,0.60896484,104860.0,104850.0,0.00457585]
[1738336669077,0.60896484,104860.0,104850.0,0.14763685]
[1738336669346,0.60896484,104860.0,104850.0,0.00457585]
[1738336669771,0.7063216,104860.0,104850.0,0.00457585]
[1738336670356,0.60896484,104860.0,104850.0,0.00457585]
[1738336672699,0.60896484,104860.0,104850.0,0.14763685]
[1738336673112,0.27516584,104860.0,104850.0,0.14763685]
[1738336673314,0.41821284,104860.0,104850.0,0.14763685]
[1738336673917,0.0181219,104860.0,104850.0,0.14763685]
[1738336674132,0.0181219,104860.0,104850.0,0.5083024]
[1738336674336,0.0181219,104860.0,104850.0,0.60459186]
[1738336674964,0.0091219,104860.0,104850.0,0.60459186]
[1738336675781,0.0091219,104860.0,104850.0,0.48229289]
[1738336675983,0.0091219,104860.0,104850.0,0.29383685]
[1738336676250,0.0131219,104860.0,104850.0,0.29383685]
[1738336676419,0.24441206,104860.0,104850.0,0.27083685]
[1738336676627,0.25341206,104860.0,104850.0,0.27083685]
[1738336676841,0.10636506,104860.0,104850.0,0.27083685]
[1738336677043,0.24941206,104860.0,104850.0,0.27083685]
[1738336677303,0.47980167,104860.0,104850.0,0.27083685]
[1738336677509,0.40241206,104860.0,104850.0,0.27083685]
[1738336677711,0.25936506,104860.0,104850.0,0.27083685]
[1738336677920,0.40241206,104860.0,104850.0,0.12777585]
[1738336678274,0.40241206,104860.0,104850.0,0.00457585]
[1738336680742,0.25936506,104860.0,104850.0,0.14763685]
[1738336680963,0.1621219,104860.0,104850.0,0.20385923]
[1738336681925,0.3051689,104860.0,104850.0,0.00457585]
[1738336684138,0.1621219,104860.0,104850.0,0.14763685]
[1738336685427,0.0121219,104860.0,104850.0,0.27829053]
[1738336685634,0.0121219,104860.0,104850.0,0.27733685]
[1738336686064,0.0121219,104860.0,104850.0,0.37458001]
[1738336686267,0.0121219,104860.0,104850.0,0.47193677]
[1738336690363,0.0121219,104860.0,104850.0,0.49493677]
[1738336690971,0.0121219,104860.0,104850.0,0.47193677]
[1738336691296,0.0121219,104860.0,104850.0,0.27733685]
[1738336692717,0.0121219,104860.0,104850.0,0.39758001]
[1738336692921,0.0121219,104860.0,104850.0,0.37458001]
[1738336695171,0.0121219,104860.0,104850.0,0.39356815]
[1738336695401,0.0121219,104860.0,104850.0,0.49092491]
[1738336696300,0.0121219,104860.0,104850.0,0.5204492]
[1738336696505,0.0121219,104860.0,104850.0,0.5434492]
[1738336697753,0.0121219,104860.0,104850.0,0.5204492]
[1738336697976,0.0121219,104860.0,104850.0,0.42309244]
[1738336698178,0.0121219,104860.0,104850.0,0.29632499]
[1738336705544,0.0121219,104860.0,104850.0,0.32587423]
[1738336705763,0.0121219,104860.0,104850.0,0.44611739]
[1738336705992,0.0121219,104860.0,104850.0,0.56838259]
[1738336706175,0.0121219,104860.0,104850.0,0.66573935]
[1738336706631,0.0121219,104860.0,104850.0,0.54347415]
[1738336710150,0.0121219,104860.0,104850.0,0.66573935]
[1738336710975,0.0091219,104860.0,104850.0,0.66573935]
[1738336711203,0.0001219,104860.0,104850.0,0.66573935]
[1738336711359,0.0111219,104860.0,104850.0,0.66573935]
[1738336711819,0.00748822,104860.0,104850.0,0.93800455]
[1738336712399,0.00748822,104860.0,104850.0,0.81573935]
[1738336712600,0.00748822,104860.0,104850.0,0.81973935]
[1738336712924,0.00748822,104860.0,104850.0,0.94400455]
[1738336713286,0.00748822,104860.0,104850.0,0.82173935]
[1738336713483,0.00748822,104860.0,104850.0,0.94400455]
[1738336715023,0.00748822,104860.0,104850.0,0.82173935]
[1738336715460,0.00748822,104860.0,104850.0,0.94400455]
[1738336716020,0.00748822,104860.0,104850.0,0.95400455]
[1738336717080,0.0001219,104880.0,104870.0,0.273334]
[1738336717244,0.0001219,104880.0,104870.0,0.4656031]
[1738336717444,0.0001219,104880.0,104870.0,0.46992731]
[1738336718285,0.00316975,104880.0,104870.0,0.46992731]
[1738336719960,0.01216975,104880.0,104870.0,0.47092731]
[1738336720376,0.00316975,104880.0,104870.0,0.30720745]
[1738336720617,0.01216975,104880.0,104870.0,0.14835821]
[1738336720830,0.25243291,104880.0,104870.0,0.00532421]
[1738336721031,0.28153291,104880.0,104870.0,0.00532421]
[1738336721895,0.43153291,104880.0,104870.0,0.00532421]
[1738336722112,0.44153291,104880.0,104870.0,0.00532421]
[1738336722319,0.44153291,104880.0,104870.0,0.14835821]
[1738336722527,0.44153291,104880.0,104870.0,0.21564263]
[1738336722946,0.43253291,104880.0,104870.0,0.21464263]
[1738336723153,0.43653291,104880.0,104870.0,0.07260863]
[1738336723355,0.42353291,104880.0,104870.0,0.07260863]
[1738336723565,0.41953291,104880.0,104870.0,0.00432421]
[1738336723769,0.43253291,104880.0,104870.0,0.00532421]
[1738336724187,0.43253291,104880.0,104870.0,0.00432421]
[1738336724188,0.41953291,104880.0,104870.0,0.00432421]
[1738336724623,0.143047,104860.0,104850.0,0.00025599]
[1738336724861,0.143047,104860.0,104850.0,0.14331699]
[1738336725042,0.143047,104860.0,104850.0,0.00025599]
[1738336725470,0.24029016,104860.0,104850.0,0.00025599]
[1738336725955,0.26939016,104860.0,104850.0,0.00025599]
[1738336726782,0.26939016,104860.0,104850.0,0.14731699]
[1738336727411,0.27039016,104860.0,104850.0,0.00525599]
[1738336727998,0.27039016,104860.0,104850.0,0.00970611]
[1738336728659,0.28008016,104860.0,104850.0,0.00970611]
[1738336729841,0.43008016,104860.0,104850.0,0.00970611]
[1738336730446,0.45308016,104860.0,104850.0,0.00970611]
[1738336730630,0.45208016,104860.0,104850.0,0.00870611]
[1738336730827,0.45208016,104860.0,104850.0,0.00470611]
[1738336731022,0.46108016,104860.0,104850.0,0.00570611]
[1738336731229,0.47008016,104860.0,104850.0,0.00470611]
[1738336731460,0.58955882,104860.0,104850.0,0.00470611]
[1738336731603,0.59855882,104860.0,104850.0,0.00570611]
[1738336732077,0.60855882,104860.0,104850.0,0.00570611]
[1738336732428,0.59855882,104860.0,104850.0,0.00570611]
[1738336732632,0.58955882,104860.0,104850.0,0.00570611]
[1738336732830,0.59855882,104860.0,104850.0,0.00570611]
[1738336733063,0.58055882,104860.0,104850.0,0.00470611]
[1738336733300,0.50220206,104860.0,104850.0,0.00470611]
[1738336733474,0.49320206,104860.0,104850.0,0.00470611]
[1738336733674,0.50220206,104860.0,104850.0,0.00470611]
[1738336734448,0.49220206,104860.0,104850.0,0.00470611]
[1738336734656,0.58955882,104860.0,104850.0,0.00470611]
[1738336735076,0.60838135,104860.0,104850.0,0.00470611]
[1738336735695,0.62332021,104860.0,104850.0,0.00470611]
[1738336735904,0.64332021,104860.0,104850.0,0.00470611]
[1738336736106,0.62838135,104860.0,104850.0,0.00470611]
[1738336736802,0.62838135,104860.0,104850.0,0.00025599]
[1738336737578,0.63834005,104860.0,104850.0,0.00025599]
[1738336737984,0.63834005,104860.0,104850.0,0.00482121]
[1738336738211,0.54098329,104860.0,104850.0,0.00482121]
[1738336741380,0.55592241,104860.0,104850.0,0.00482121]
[1738336742007,0.56292241,104860.0,104850.0,0.00482121]
[1738336742226,0.56292241,104860.0,104850.0,0.00025599]
[1738336742947,0.56292241,104860.0,104850.0,9.9e-07]
[1738336743157,0.66027917,104860.0,104850.0,9.9e-07]
[1738336744280,0.56292241,104860.0,104850.0,9.9e-07]
[1738336744488,0.57292241,104860.0,104850.0,9.9e-07]
[1738336744695,0.55592241,104860.0,104850.0,9.9e-07]
[1738336744920,0.56292241,104860.0,104850.0,9.9e-07]
[1738336745531,0.54798329,104860.0,104850.0,9.9e-07]
[1738336745682,0.63534005,104860.0,104850.0,9.9e-07]
[1738336746108,0.63534005,104860.0,104850.0,0.00459587]
[1738336746323,0.46988329,104860.0,104850.0,0.00459587]
[1738336753510,1.16988329,104860.0,104850.0,0.00459587]
[1738336754376,1.22898329,104860.0,104850.0,0.00459587]
[1738336754587,1.23470921,104860.0,104850.0,0.00459587]
[1738336754830,1.33206597,104860.0,104850.0,9.9e-07]
[1738336755039,0.326088,104830.0,104820.0,0.00025557]
[1738336755272,0.44333116,104830.0,104820.0,0.00025557]
[1738336755481,1.14333116,104830.0,104820.0,0.00025557]
[1738336755699,1.24068792,104830.0,104820.0,0.00025557]
[1738336755909,1.25064662,104830.0,104820.0,0.00025557]
[1738336756126,0.55064662,104830.0,104820.0,0.00025557]
[1738336756271,0.55069443,104830.0,104820.0,0.00025557]
[1738336756495,0.54969443,104830.0,104820.0,0.00025557]
[1738336756710,0.57342035,104830.0,104820.0,0.00025557]
[1738336757046,0.54969443,104830.0,104820.0,0.00025557]
[1738336757480,1.24969443,104830.0,104820.0,0.00025557]
[1738336757881,1.25169443,104830.0,104820.0,0.00025557]
[1738336758319,0.342202,104820.0,104810.0,9.9e-07]
[1738336758533,1.22396192,104820.0,104810.0,9.9e-07]
[1738336758767,0.346116,104810.0,104800.0,0.00021677]
[1738336758979,0.43335916,104810.0,104800.0,0.00021677]
[1738336759192,0.43335916,104810.0,104800.0,7.7e-07]
[1738336759398,0.43335916,104810.0,104760.0,0.13148355]
[1738336759399,0.29317,104770.0,104760.0,0.13148355]
[1738336759597,0.39041316,104770.0,104760.0,0.13148355]
[1738336760852,0.39041316,104770.0,104760.0,0.13196317]
[1738336761636,0.39141316,104770.0,104760.0,0.13196317]
[1738336762081,0.24724316,104770.0,104760.0,0.27514717]
[1738336762569,1.09041316,104770.0,104760.0,0.27514717]
[1738336762775,0.95624316,104770.0,104760.0,0.27514717]
[1738336763017,1.09941316,104770.0,104760.0,0.27514717]
[1738336763226,0.85,104770.0,104760.0,0.27514717]
[1738336763433,0.151,104770.0,104760.0,0.27514717]
[1738336763641,0.151,104770.0,104760.0,0.13196317]
[1738336764477,0.29417,104770.0,104760.0,0.13196317]
[1738336764884,0.47530132,104770.0,104760.0,0.13296317]
[1738336765690,0.47530132,104770.0,104760.0,0.13308507]
[1738336765827,0.47430132,104770.0,104760.0,0.13208507]
[1738336766240,0.39241316,104770.0,104760.0,0.13208507]
[1738336766454,0.40141316,104770.0,104760.0,0.13208507]
[1738336766872,1.10141316,104770.0,104760.0,0.13208507]
[1738336768548,0.40141316,104770.0,104760.0,0.13208507]
[1738336769976,1.10141316,104770.0,104760.0,0.00060152]
[1738336770209,1.23698692,104770.0,104760.0,0.00060152]
[1738336770441,1.25998692,104770.0,104760.0,0.00060152]
[1738336770649,1.26998692,104770.0,104760.0,0.00060152]
[1738336770854,1.26798692,104770.0,104760.0,0.00060152]
[1738336771349,1.28594562,104770.0,104760.0,0.00060152]
[1738336771763,1.27794562,104770.0,104760.0,0.00060152]
[1738336771969,0.316184,104760.0,104750.0,0.00025599]
[1738336772176,1.12342716,104760.0,104750.0,0.00039979]
[1738336773140,1.13242716,104760.0,104750.0,0.00039979]
[1738336773936,1.14142716,104760.0,104750.0,0.00039979]
[1738336775787,1.14854716,104760.0,104750.0,0.00039979]
[1738336776996,1.16854716,104760.0,104750.0,0.00039979]
[1738336777332,1.29710392,104760.0,104750.0,7.9e-07]
[1738336777535,0.303198,104750.0,104740.0,0.00021678]
[1738336777768,0.40044116,104750.0,104740.0,0.0003607]
[1738336777965,0.40044116,104750.0,104740.0,0.00014392]
[1738336778169,1.10044116,104750.0,104740.0,0.00014392]
[1738336778476,1.19779792,104750.0,104740.0,0.00014392]
[1738336778900,1.12244116,104750.0,104740.0,0.00014392]
[1738336779094,1.13244116,104750.0,104740.0,0.00014392]
[1738336780449,0.01,104740.0,104730.0,0.000113]
[1738336780659,1.17788841,104740.0,104730.0,0.000113]
[1738336780882,0.346225,104730.0,104720.0,0.00025578]
[1738336781124,0.54082492,104730.0,104720.0,0.00025578]
[1738336781575,1.24018711,104730.0,104720.0,0.00025578]
[1738336781786,1.28825917,104730.0,104720.0,7.8e-07]
[1738336782216,1.29537917,104730.0,104720.0,7.8e-07]
[1738336782424,0.293266,104700.0,104690.0,0.0158339]
[1738336782634,0.293266,104700.0,104680.0,0.01766667]
[1738336782635,0.32564219,104690.0,104680.0,0.01766667]
[1738336782874,0.293307,104670.0,104660.0,0.1236]
[1738336783082,0.316321,104660.0,104650.0,0.0774219]
[1738336783283,0.41356416,104660.0,104650.0,0.0001219]
[1738336783488,0.41356416,104660.0,104650.0,0.00437917]
[1738336783695,0.41356416,104660.0,104650.0,0.00485982]
[1738336783696,0.45214109,104660.0,104650.0,0.00485982]
[1738336783899,0.50957534,104660.0,104650.0,0.00485982]
[1738336784120,0.39056416,104660.0,104650.0,0.00485982]
[1738336784329,1.09956416,104660.0,104650.0,0.00485982]
[1738336784535,1.17631582,104660.0,104650.0,0.00485982]
[1738336784739,1.16731582,104660.0,104650.0,0.00485982]
[1738336784948,1.11356416,104660.0,104650.0,0.00485982]
[1738336785150,1.21992092,104660.0,104650.0,0.00485982]
[1738336785376,1.27367258,104660.0,104650.0,0.00485982]
[1738336785586,1.28267258,104660.0,104650.0,0.00485982]
[1738336785790,1.22892092,104660.0,104650.0,0.00485982]
[1738336786002,1.20592092,104660.0,104650.0,0.00485982]
[1738336786230,1.10856416,104660.0,104650.0,0.00485982]
[1738336786441,1.10952286,104660.0,104650.0,0.00485982]
[1738336786642,0.40952286,104660.0,104650.0,0.00485982]
[1738336786854,0.41852286,104660.0,104650.0,0.00485982]
[1738336787060,0.41852286,104660.0,104650.0,0.00911709]
[1738336787257,0.51587962,104660.0,104650.0,0.00911709]
[1738336787665,0.41852286,104660.0,104650.0,0.00911709]
[1738336788280,0.41852286,104660.0,104650.0,0.00485982]
[1738336788544,0.41852286,104660.0,104650.0,0.00920083]
[1738336790330,0.42808046,104660.0,104650.0,0.00920083]
[1738336790697,0.42808046,104660.0,104650.0,0.08830083]
[1738336790904,0.42808046,104660.0,104650.0,0.08893864]
[1738336792480,0.27520186,104660.0,104650.0,0.27907264]
[1738336792686,0.11524316,104660.0,104650.0,0.34517369]
[1738336792889,0.11524316,104660.0,104650.0,0.27907264]
[1738336793025,0.018,104660.0,104650.0,0.27907264]
[1738336793418,0.40856416,104660.0,104650.0,0.13573864]
[1738336793619,0.40856416,104660.0,104650.0,0.13510083]
[1738336794447,0.39956416,104660.0,104650.0,0.13510083]
[1738336794650,0.39456416,104660.0,104650.0,0.13573864]
[1738336794887,0.50092092,104660.0,104650.0,0.13573864]
[1738336795075,0.49192092,104660.0,104650.0,0.13573864]
[1738336795285,0.48792092,104660.0,104650.0,0.13573864]
[1738336795486,0.50592092,104660.0,104650.0,0.13573864]
[1738336795803,0.49692092,104660.0,104650.0,0.13573864]
[1738336795957,0.52617292,104660.0,104650.0,0.13573864]
[1738336796157,0.53517292,104660.0,104650.0,0.13573864]
[1738336796372,0.54317292,104660.0,104650.0,0.13573864]
[1738336796785,0.44581616,104660.0,104650.0,0.13573864]
[1738336797010,0.40756416,104660.0,104650.0,0.13573864]
[1738336797360,0.26424316,104660.0,104650.0,0.27907264]
[1738336797562,0.167,104660.0,104650.0,0.27907264]
[1738336797773,0.167,104660.0,104650.0,0.13573864]
[1738336797774,0.40756416,104660.0,104650.0,0.13573864]
[1738336797977,0.50492092,104660.0,104650.0,0.13573864]
[1738336798809,0.40756416,104660.0,104650.0,0.13573864]
[1738336801612,0.41756416,104660.0,104650.0,0.13573864]
[1738336802561,0.41756416,104660.0,104650.0,0.27907264]
[1738336803007,0.40756416,104660.0,104650.0,0.27907264]
[1738336803205,0.40756416,104660.0,104650.0,0.13573864]
[1738336803472,0.50492092,104660.0,104650.0,0.13573864]
[1738336804560,0.40756416,104660.0,104650.0,0.13573864]
[1738336806594,0.26424316,104660.0,104650.0,0.13573864]
[1738336806798,0.017,104660.0,104650.0,0.28002819]
[1738336807004,0.017,104660.0,104650.0,0.27907264]
[1738336807208,0.017,104660.0,104650.0,0.3763158]
[1738336807422,0.017,104660.0,104650.0,0.47367256]
[1738336807657,0.00025642,104680.0,104670.0,0.26434481]
[1738336808038,0.00025642,104680.0,104670.0,0.26937983]
[1738336808636,0.29354942,104680.0,104670.0,0.26937983]
[1738336808816,0.39979258,104680.0,104670.0,0.12543502]
[1738336809018,0.39079258,104680.0,104670.0,0.12543502]
[1738336809436,0.39079258,104680.0,104670.0,0.26874202]
[1738336809644,0.39079258,104680.0,104670.0,0.26937983]
[1738336809843,0.39079258,104680.0,104670.0,0.12607283]
[1738336810273,0.39079258,104680.0,104670.0,0.26937983]
[1738336810946,0.39979258,104680.0,104670.0,0.27037983]
[1738336811130,0.39979258,104680.0,104670.0,0.12643502]